fUST/lending_fUST_20250708
["ID","MTS","AMOUNT","RATE_DAILY","PERIOD"]
[370370724,1751983843651,-638.06,0.00019452,2]
[370370726,1751983843660,-460.0,0.00019452,2]
[370370728,1751983843669,-460.0,0.00019452,2]
[370370730,1751983843678,-401.60632949,0.00019452,2]
[370370732,1751983843687,-495.68,0.00019452,2]
[370370734,1751983843697,-216.55430421,0.00019452,2]
[370370736,1751983843707,-460.0,0.00019452,2]
[370370738,1751983843716,-464.38289261,0.00019452,2]
[370370740,1751983843725,-460.0,0.00019452,2]
[370370742,1751983843735,-460.0,0.00019452,2]
[370370744,1751983843744,-460.0,0.00019452,2]
[370370746,1751983843753,-460.0,0.00019452,2]
[370370748,1751983843762,-460.0,0.00019452,2]
[370370750,1751983843772,-460.0,0.00019452,2]
[370370752,1751983843781,-460.0,0.00019452,2]
[370370754,1751983843791,-460.0,0.00019452,2]
[370370756,1751983843800,-556.73,0.00019452,2]
[370370758,1751983843810,-1163.67,0.00019452,2]
[370370760,1751983843820,-460.0,0.00019452,2]
[370370762,1751983843829,-460.0,0.00019452,2]
[370370764,1751983843838,-465.61895847,0.00019452,2]
[370370766,1751983843848,-596.01132318,0.00019452,2]
[370370768,1751983843857,-460.0,0.00019452,2]
[370370770,1751983843867,-460.0,0.00019452,2]
[370370772,1751983843877,-460.0,0.00019452,2]
[370370774,1751983843888,-460.0,0.00019452,2]
[370370776,1751983843899,-460.0,0.00019452,2]
[370370779,1751983843908,-460.0,0.00019452,2]
[370370780,1751983843918,-460.0,0.00019452,2]
[370370783,1751983843927,-593.12,0.00019452,2]
[370370785,1751983843937,-460.0,0.00019452,2]
[370370787,1751983843946,-756.52,0.00019452,2]
[370370789,1751983843956,-460.0,0.00019452,2]
[370370791,1751983843965,-460.0,0.00019452,2]
[370370793,1751983843974,-460.0,0.00019452,2]
[370370795,1751983843984,-488.13,0.00019452,2]
[370370797,1751983843994,-460.0,0.00019452,2]
[370370799,1751983844003,-460.0,0.00019452,2]
[370370801,1751983844012,-1004.35,0.00019452,2]
[370370803,1751983844022,-460.0,0.00019452,2]
[370370805,1751983844033,-474.42656015,0.00019452,2]
[370370807,1751983844042,-460.0,0.00019452,2]
[370370809,1751983844052,-460.0,0.00019452,2]
[370370811,1751983844062,-1589.41,0.00019452,2]
[370370813,1751983844071,-460.0,0.00019452,2]
[370370815,1751983844080,-460.0,0.00019452,2]
[370370817,1751983844090,-500.0,0.00019452,2]
[370370819,1751983844099,-460.0,0.00019452,2]
[370370821,1751983844109,-460.0,0.00019452,2]
[370370823,1751983844118,-460.0,0.00019452,2]
[370370825,1751983844128,-460.0,0.00019452,2]
[370370827,1751983844141,-460.0,0.00019452,2]
[370370829,1751983844150,-460.0,0.00019452,2]
[370370831,1751983844160,-588.12711238,0.00019452,2]
[370370833,1751983844169,-460.0,0.00019452,2]
[370370835,1751983844182,-460.0,0.00019452,2]
[370370837,1751983844192,-2636.16,0.00019452,2]
[370370839,1751983844201,-460.0,0.00019452,2]
[370370841,1751983844213,-460.0,0.00019452,2]
[370370843,1751983844223,-460.0,0.00019452,2]
[370370844,1751983844232,-484.26453525,0.00019452,2]
[370370845,1751983844242,-460.0,0.00019452,2]
[370370846,1751983844252,-460.0,0.00019452,2]
[370370847,1751983844262,-460.0,0.00019452,2]
[370370848,1751983844271,-460.0,0.00019452,2]
[370370849,1751983844280,-460.0,0.00019452,2]
[370370850,1751983844289,-460.0,0.00019452,2]
[370370851,1751983844299,-460.0,0.00019452,2]
[370370852,1751983844308,-1295.21,0.00019452,2]
[370370853,1751983844318,-430.0,0.00019452,2]
[370370854,1751983844328,-460.0,0.00019452,2]
[370370856,1751983844337,-474.48766616,0.00019452,2]
[370370858,1751983844347,-460.0,0.00019452,2]
[370370859,1751983844357,-460.0,0.00019452,2]
[370370860,1751983844367,-460.0,0.00019452,2]
[370370861,1751983844377,-6627.92,0.00019452,2]
[370370862,1751983844399,-460.0,0.00019452,2]
[370370863,1751983844430,-460.0,0.00019452,2]
[370370864,1751983844459,-460.0,0.00019452,2]
[370370865,1751983844484,-461.34,0.00019452,2]
[370370866,1751983844505,-357.64424055,0.00019452,2]
[370370867,1751983844525,-467.43372384,0.00019452,2]
[370370868,1751983844547,-460.0,0.00019452,2]
[370370869,1751983844570,-460.0,0.00019452,2]
[370370870,1751983844593,-460.0,0.00019452,2]
[370370871,1751983844616,-460.0,0.00019452,2]
[370370872,1751983844633,-460.0,0.00019452,2]
[370370873,1751983844642,-500.84,0.00019452,2]
[370370874,1751983844651,-460.0,0.00019452,2]
[370370875,1751983844660,-717.97,0.00019452,2]
[370370876,1751983844669,-3262.07,0.00019452,2]
[370370877,1751983844679,-460.0,0.00019452,2]
[370370878,1751983844688,-460.0,0.00019452,2]
[370370879,1751983844697,-460.0,0.00019452,2]
[370370880,1751983844706,-460.0,0.00019452,2]
[370370881,1751983844716,-538.23191412,0.00019452,2]
[370370882,1751983844725,-1762.31,0.00019452,2]
[370370883,1751983844734,-903.25,0.00019452,2]
[370370884,1751983844744,-460.0,0.00019452,2]
[370370885,1751983844755,-460.0,0.00019452,2]
[370370886,1751983844765,-192.89041772,0.00019452,2]
[370370887,1751983844775,-5827.89,0.00019452,2]
[370370888,1751983844784,-933.44,0.00019452,2]
[370370889,1751983844794,-460.0,0.00019452,2]
[370370890,1751983844804,-550.0,0.00019452,2]
[370370891,1751983844813,-1582.35,0.00019452,2]
[370370892,1751983844823,-460.0,0.00019452,2]
[370370893,1751983844833,-586.86,0.00019452,2]
[370370894,1751983844843,-460.0,0.00019452,2]
[370370895,1751983844852,-1015.36,0.00019452,2]
[370370896,1751983844862,-460.0,0.00019452,2]
[370370897,1751983844871,-460.0,0.00019452,2]
[370370898,1751983844880,-460.0,0.00019452,2]
[370370899,1751983844890,-884.84,0.00019452,2]
[370370900,1751983844902,-850.53,0.00019452,2]
[370370901,1751983844911,-460.0,0.00019452,2]
[370370902,1751983844921,-460.0,0.00019452,2]
[370370903,1751983844931,-460.0,0.00019452,2]
[370370904,1751983844941,-460.0,0.00019452,2]
[370370905,1751983844951,-460.0,0.00019452,2]
[370370906,1751983844960,-460.0,0.00019452,2]
[370370907,1751983844970,-604.48,0.00019452,2]
[370370908,1751983844980,-944.75,0.00019452,2]
[370370910,1751983844990,-1927.49,0.00019452,2]
[370370911,1751983844999,-460.0,0.00019452,2]
[370370912,1751983845009,-460.0,0.00019452,2]
[370370913,1751983845018,-460.0,0.00019452,2]
[370370914,1751983845028,-460.0,0.00019452,2]
[370370915,1751983845038,-460.0,0.00019452,2]
[370370916,1751983845047,-460.0,0.00019452,2]
[370370917,1751983845057,-440.0,0.00019452,2]
[370370918,1751983845066,-460.0,0.00019452,2]
[370370919,1751983845076,-460.0,0.00019452,2]
[370370920,1751983845085,-460.0,0.00019452,2]
[370370921,1751983845095,-4200.32,0.00019452,2]
[370370922,1751983845104,-460.0,0.00019452,2]
[370370923,1751983845113,-188.29,0.00019452,2]
[370370924,1751983845123,-460.0,0.00019452,2]
[370370925,1751983845134,-1723.86,0.00019452,2]
[370370926,1751983845144,-1105.47,0.00019452,2]
[370370927,1751983845154,-1235.45,0.00019452,2]
[370370928,1751983845164,-460.0,0.00019452,2]
[370370929,1751983845175,-500.0,0.00019452,2]
[370370931,1751983845184,-1392.07,0.00019452,2]
[370370933,1751983845194,-460.0,0.00019452,2]
[370370934,1751983845204,-460.0,0.00019452,2]
[370370935,1751983845214,-4502.23,0.00019452,2]
[370370936,1751983845224,-460.0,0.00019452,2]
[370370937,1751983845233,-460.0,0.00019452,2]
[370370939,1751983845243,-460.0,0.00019452,2]
[370370941,1751983845252,-471.85,0.00019452,2]
[370370943,1751983845262,-871.65,0.00019452,2]
[370370944,1751983845271,-460.0,0.00019452,2]
[370370945,1751983845280,-967.31,0.00019452,2]
[370370946,1751983845290,-460.0,0.00019452,2]
[370370947,1751983845300,-1518.02,0.00019452,2]
[370370948,1751983845310,-482.61461814,0.00019452,2]
[370370949,1751983845319,-460.0,0.00019452,2]
[370370950,1751983845328,-460.0,0.00019452,2]
[370370951,1751983845338,-6907.07,0.00019452,2]
[370370952,1751983845347,-460.0,0.00019452,2]
[370370953,1751983845356,-460.0,0.00019452,2]
[370370954,1751983845366,-460.0,0.00019452,2]
[370370955,1751983845376,-460.0,0.00019452,2]
[370370956,1751983845386,-611.77,0.00019452,2]
[370370957,1751983845397,-460.0,0.00019452,2]
[370370958,1751983845407,-460.0,0.00019452,2]
[370370959,1751983845416,-1153.7,0.00019452,2]
[370370960,1751983845426,-1098.97,0.00019452,2]
[370370961,1751983845435,-967.64,0.00019452,2]
[370370962,1751983845445,-460.0,0.00019452,2]
[370370963,1751983845455,-2085.57,0.00019452,2]
[370370964,1751983845464,-460.0,0.00019452,2]
[370370965,1751983845474,-460.0,0.00019452,2]
[370370966,1751983845483,-460.0,0.00019452,2]
[370370967,1751983845493,-469.10159919,0.00019452,2]
[370370968,1751983845503,-460.0,0.00019452,2]
[370370969,1751983845512,-460.0,0.00019452,2]
[370370970,1751983845522,-463.65,0.00019452,2]
[370370971,1751983845533,-2119.43,0.00019452,2]
[370370972,1751983845543,-566.22,0.00019452,2]
[370370973,1751983845552,-1205.75,0.00019452,2]
[370370974,1751983845562,-460.0,0.00019452,2]
[370370975,1751983845571,-1948.08,0.00019452,2]
[370370976,1751983845581,-460.0,0.00019452,2]
[370370977,1751983845590,-460.0,0.00019452,2]
[370370978,1751983845599,-2272.9,0.00019452,2]
[370370979,1751983845608,-4616.11,0.00019452,2]
[370370980,1751983845618,-460.0,0.00019452,2]
[370370981,1751983845627,-201.03521453,0.00019452,2]
[370370982,1751983845637,-4247.65,0.00019452,2]
[370370983,1751983845647,-460.0,0.00019452,2]
[370370984,1751983845658,-944.07,0.00019452,2]
[370370985,1751983845668,-514.3,0.00019452,2]
[370370986,1751983845677,-460.0,0.00019452,2]
[370370987,1751983845687,-653.52,0.00019452,2]
[370370988,1751983845697,-847.56,0.00019452,2]
[370370989,1751983845706,-460.0,0.00019452,2]
[370370990,1751983845715,-460.0,0.00019452,2]
[370370991,1751983845725,-8781.99,0.00019452,2]
[370370992,1751983845735,-464.95034664,0.00019452,2]
[370370993,1751983845744,-460.0,0.00019452,2]
[370370994,1751983845753,-500.52,0.00019452,2]
[370370995,1751983845763,-460.0,0.00019452,2]
[370370996,1751983845773,-460.0,0.00019452,2]
[370370997,1751983845782,-1078.93,0.00019452,2]
[370371011,1751983845951,-1410.35,0.00019452,2]
[370371014,1751983845961,-460.0,0.00019452,2]
[370371016,1751983845971,-460.0,0.00019452,2]
[370371019,1751983845981,-460.0,0.00019452,2]
[370371021,1751983845990,-462.7614612,0.00019452,2]
[370371023,1751983846000,-4842.26,0.00019452,2]
[370371025,1751983846010,-1487.97,0.00019452,2]
[370371027,1751983846019,-460.0,0.00019452,2]
[370371029,1751983846028,-1632.92,0.00019452,2]
[370371031,1751983846038,-460.0,0.00019452,2]
[370371033,1751983846047,-460.0,0.00019452,2]
[370371035,1751983846056,-1835.67,0.00019452,2]
[370371037,1751983846066,-2207.44,0.00019452,2]
[370371039,1751983846075,-460.0,0.00019452,2]
[370371041,1751983846085,-460.0,0.00019452,2]
[370371043,1751983846094,-460.0,0.00019452,2]
[370371045,1751983846103,-460.0,0.00019452,2]
[370371047,1751983846112,-460.0,0.00019452,2]
[370371049,1751983846121,-460.0,0.00019452,2]
[370371051,1751983846131,-460.0,0.00019452,2]
[370371053,1751983846144,-154.51746456,0.00019473,2]
[370371055,1751983846153,-500.0,0.00019473,2]
[370371057,1751983846163,-151.0,0.000195,2]
[370371059,1751983846173,-500.0,0.00019535,2]
[370371061,1751983846183,-501.53711033,0.00019535,2]
[370371063,1751983846193,-196.99992622,0.00019559,2]
[370371065,1751983846202,-500.0,0.000196,2]
[370371068,1751983846212,-500.79233465,0.000196,2]
[370371070,1751983846223,-151.0,0.000196,2]
[370371072,1751983846232,-151.0,0.000196,2]
[370371074,1751983846241,-967.0,0.00019645,2]
[370371076,1751983846250,-705.0,0.00019645,2]
[370371078,1751983846259,-2153.0,0.00019645,2]
[370371079,1751983846268,-259.0,0.00019666,2]
[370371081,1751983846278,-168.0,0.00019694,2]
[370371084,1751983846287,-1000.0,0.00019721,2]
[370371086,1751983846297,-500.0,0.00019721,2]
[370371088,1751983846307,-1000.0,0.00019721,2]
[370371090,1751983846316,-1000.0,0.00019721,2]
[370371092,1751983846325,-1000.0,0.00019721,2]
[370371094,1751983846335,-954.40572668,0.00019721,2]
[370371096,1751983846344,-1001.55669578,0.00019721,2]
[370371098,1751983846353,-1000.0,0.00019721,2]
[370371100,1751983846363,-1000.0,0.00019721,2]
[370371102,1751983846372,-500.0,0.00019725,2]
[370371104,1751983846382,-460.0,0.00019726,2]
[370371106,1751983846392,-460.0,0.00019726,2]
[370371108,1751983846401,-460.0,0.00019726,2]
[370371110,1751983846411,-460.0,0.00019726,2]
[370371112,1751983846420,-608.54,0.00019726,2]
[370371114,1751983846430,-471.73,0.00019726,2]
[370371116,1751983846439,-460.0,0.00019726,2]
[370371118,1751983846449,-460.0,0.00019726,2]
[370371120,1751983846459,-460.0,0.00019726,2]
[370371122,1751983846470,-460.0,0.00019726,2]
[370371124,1751983846481,-460.0,0.00019726,2]
[370371126,1751983846491,-460.0,0.00019726,2]
[370371127,1751983846501,-460.0,0.00019726,2]
[370371128,1751983846510,-460.0,0.00019726,2]
[370371129,1751983846519,-460.0,0.00019726,2]
[370371130,1751983846529,-460.0,0.00019726,2]
[370371131,1751983846539,-551.19,0.00019726,2]
[370371132,1751983846548,-460.0,0.00019726,2]
[370371133,1751983846558,-460.0,0.00019726,2]
[370371134,1751983846567,-460.0,0.00019726,2]
[370371135,1751983846577,-958.86,0.00019726,2]
[370371136,1751983846588,-460.0,0.00019726,2]
[370371137,1751983846597,-465.74321981,0.00019726,2]
[370371138,1751983846607,-366.85642596,0.00019726,2]
[370371139,1751983846615,-636.73,0.00019726,2]
[370371140,1751983846625,-460.0,0.00019726,2]
[370371141,1751983846634,-460.0,0.00019726,2]
[370371142,1751983846643,-266.81286673,0.00019726,2]
[370371143,1751983846653,-769.3,0.00019726,2]
[370371144,1751983846662,-460.0,0.00019726,2]
[370371145,1751983846672,-460.0,0.00019726,2]
[370371146,1751983846681,-460.0,0.00019726,2]
[370371147,1751983846690,-638.06,0.00019726,2]
[370371148,1751983846699,-460.0,0.00019726,2]
[370371150,1751983846709,-460.0,0.00019726,2]
[370371151,1751983846718,-495.68,0.00019726,2]
[370371152,1751983846728,-460.0,0.00019726,2]
[370371154,1751983846738,-188.49941857,0.00019726,2]
[370371156,1751983846747,-460.0,0.00019726,2]
[370371159,1751983846756,-460.0,0.00019726,2]
[370371161,1751983846765,-460.0,0.00019726,2]
[370371163,1751983846774,-460.0,0.00019726,2]
[370371165,1751983846784,-460.0,0.00019726,2]
[370371167,1751983846793,-1163.67,0.00019726,2]
[370371168,1751983846803,-460.0,0.00019726,2]
[370371170,1751983846812,-460.0,0.00019726,2]
[370371172,1751983846821,-460.0,0.00019726,2]
[370371175,1751983846831,-460.0,0.00019726,2]
[370371177,1751983846841,-389.89938791,0.00019726,2]
[370371179,1751983846850,-460.0,0.00019726,2]
[370371181,1751983846861,-572.46,0.00019726,2]
[370371183,1751983846870,-593.12,0.00019726,2]
[370371185,1751983846879,-460.0,0.00019726,2]
[370371187,1751983846888,-756.52,0.00019726,2]
[370371189,1751983846898,-460.0,0.00019726,2]
[370371191,1751983846907,-460.0,0.00019726,2]
[370371192,1751983846916,-460.0,0.00019726,2]
[370371195,1751983846927,-488.13,0.00019726,2]
[370371197,1751983846936,-463.66875312,0.00019726,2]
[370371199,1751983846946,-460.0,0.00019726,2]
[370371201,1751983846956,-1004.35,0.00019726,2]
[370371203,1751983846966,-460.0,0.00019726,2]
[370371205,1751983846976,-460.0,0.00019726,2]
[370371207,1751983846986,-460.0,0.00019726,2]
[370371209,1751983846995,-1589.41,0.00019726,2]
[370371211,1751983847005,-460.0,0.00019726,2]
[370371213,1751983847014,-460.0,0.00019726,2]
[370371215,1751983847024,-460.0,0.00019726,2]
[370371217,1751983847033,-460.0,0.00019726,2]
[370371219,1751983847043,-460.0,0.00019726,2]
[370371221,1751983847053,-460.0,0.00019726,2]
[370371223,1751983847062,-409.56913167,0.00019726,2]
[370371225,1751983847072,-460.0,0.00019726,2]
[370371227,1751983847081,-460.0,0.00019726,2]
[370371229,1751983847091,-2636.16,0.00019726,2]
[370371231,1751983847100,-358.27565661,0.00019726,2]
[370371232,1751983847110,-460.0,0.00019726,2]
[370371233,1751983847119,-460.0,0.00019726,2]
[370371234,1751983847129,-460.0,0.00019726,2]
[370371235,1751983847144,-460.0,0.00019726,2]
[370371237,1751983847153,-460.0,0.00019726,2]
[370371239,1751983847163,-460.0,0.00019726,2]
[370371240,1751983847172,-187.69660434,0.00019726,2]
[370371241,1751983847182,-1295.21,0.00019726,2]
[370371242,1751983847192,-460.0,0.00019726,2]
[370371243,1751983847202,-460.0,0.00019726,2]
[370371244,1751983847213,-460.0,0.00019726,2]
[370371245,1751983847222,-445.90608744,0.00019726,2]
[370371246,1751983847231,-6627.92,0.00019726,2]
[370371247,1751983847241,-460.0,0.00019726,2]
[370371248,1751983847250,-460.0,0.00019726,2]
[370371249,1751983847260,-460.0,0.00019726,2]
[370371250,1751983847269,-461.34,0.00019726,2]
[370371251,1751983847279,-460.0,0.00019726,2]
[370371252,1751983847288,-460.0,0.00019726,2]
[370371253,1751983847298,-460.0,0.00019726,2]
[370371254,1751983847307,-500.84,0.00019726,2]
[370371255,1751983847316,-717.97,0.00019726,2]
[370371256,1751983847326,-3262.07,0.00019726,2]
[370371257,1751983847335,-460.0,0.00019726,2]
[370371258,1751983847345,-460.0,0.00019726,2]
[370371259,1751983847354,-460.0,0.00019726,2]
[370371260,1751983847364,-460.0,0.00019726,2]
[370371261,1751983847374,-1762.31,0.00019726,2]
[370371262,1751983847383,-903.25,0.00019726,2]
[370371263,1751983847393,-460.0,0.00019726,2]
[370371264,1751983847402,-460.0,0.00019726,2]
[370371265,1751983847412,-5827.89,0.00019726,2]
[370371266,1751983847422,-933.44,0.00019726,2]
[370371267,1751983847431,-460.0,0.00019726,2]
[370371268,1751983847441,-1582.35,0.00019726,2]
[370371269,1751983847450,-460.0,0.00019726,2]
[370371270,1751983847460,-460.0,0.00019726,2]
[370371271,1751983847470,-1015.36,0.00019726,2]
[370371272,1751983847480,-586.86,0.00019726,2]
[370371273,1751983847490,-460.0,0.00019726,2]
[370371274,1751983847499,-460.0,0.00019726,2]
[370371275,1751983847508,-884.84,0.00019726,2]
[370371276,1751983847518,-460.0,0.00019726,2]
[370371277,1751983847527,-850.53,0.00019726,2]
[370371278,1751983847537,-460.0,0.00019726,2]
[370371279,1751983847547,-460.0,0.00019726,2]
[370371280,1751983847556,-460.0,0.00019726,2]
[370371281,1751983847566,-460.0,0.00019726,2]
[370371282,1751983847575,-460.0,0.00019726,2]
[370371283,1751983847585,-944.75,0.00019726,2]
[370371284,1751983847595,-604.48,0.00019726,2]
[370371285,1751983847604,-1927.49,0.00019726,2]
[370371286,1751983847613,-460.0,0.00019726,2]
[370371287,1751983847623,-460.0,0.00019726,2]
[370371288,1751983847633,-460.0,0.00019726,2]
[370371289,1751983847642,-460.0,0.00019726,2]
[370371290,1751983847651,-460.0,0.00019726,2]
[370371291,1751983847661,-580.0,0.00019726,2]
[370371292,1751983847671,-460.0,0.00019726,2]
[370371293,1751983847680,-216.26555427,0.00019726,2]
[370371294,1751983847690,-460.0,0.00019726,2]
[370371295,1751983847699,-4200.32,0.00019726,2]
[370371296,1751983847709,-460.0,0.00019726,2]
[370371297,1751983847718,-460.0,0.00019726,2]
[370371298,1751983847731,-1723.86,0.00019726,2]
[370371299,1751983847741,-1105.47,0.00019726,2]
[370371300,1751983847750,-1235.45,0.00019726,2]
[370371301,1751983847760,-460.0,0.00019726,2]
[370371302,1751983847770,-587.75,0.00019726,2]
[370371303,1751983847780,-1392.07,0.00019726,2]
[370371304,1751983847789,-460.0,0.00019726,2]
[370371305,1751983847799,-460.0,0.00019726,2]
[370371306,1751983847808,-4502.23,0.00019726,2]
[370371307,1751983847818,-460.0,0.00019726,2]
[370371308,1751983847827,-460.0,0.00019726,2]
[370371309,1751983847838,-460.0,0.00019726,2]
[370371310,1751983847848,-471.85,0.00019726,2]
[370371311,1751983847858,-871.65,0.00019726,2]
[370371312,1751983847867,-460.0,0.00019726,2]
[370371313,1751983847877,-967.31,0.00019726,2]
[370371314,1751983847887,-1518.02,0.00019726,2]
[370371315,1751983847898,-460.0,0.00019726,2]
[370371316,1751983847908,-460.06531162,0.00019726,2]
[370371317,1751983847918,-6907.07,0.00019726,2]
[370371318,1751983847929,-460.0,0.00019726,2]
[370371319,1751983847938,-460.0,0.00019726,2]
[370371320,1751983847948,-460.0,0.00019726,2]
[370371321,1751983847958,-611.77,0.00019726,2]
[370371322,1751983847968,-460.0,0.00019726,2]
[370371323,1751983847979,-460.0,0.00019726,2]
[370371324,1751983847989,-1153.7,0.00019726,2]
[370371325,1751983847999,-1098.97,0.00019726,2]
[370371326,1751983848009,-967.64,0.00019726,2]
[370371327,1751983848018,-460.0,0.00019726,2]
[370371328,1751983848028,-2085.57,0.00019726,2]
[370371329,1751983848038,-460.0,0.00019726,2]
[370371330,1751983848048,-460.0,0.00019726,2]
[370371331,1751983848058,-460.0,0.00019726,2]
[370371332,1751983848068,-460.0,0.00019726,2]
[370371333,1751983848078,-463.65,0.00019726,2]
[370371334,1751983848088,-2119.43,0.00019726,2]
[370371335,1751983848097,-566.22,0.00019726,2]
[370371336,1751983848107,-1205.75,0.00019726,2]
[370371337,1751983848117,-460.0,0.00019726,2]
[370371338,1751983848127,-1948.08,0.00019726,2]
[370371339,1751983848145,-460.0,0.00019726,2]
[370371340,1751983848156,-460.0,0.00019726,2]
[370371341,1751983848166,-2272.9,0.00019726,2]
[370371342,1751983848176,-4616.11,0.00019726,2]
[370371343,1751983848187,-460.0,0.00019726,2]
[370371344,1751983848196,-4247.65,0.00019726,2]
[370371345,1751983848206,-460.0,0.00019726,2]
[370371346,1751983848216,-944.07,0.00019726,2]
[370371347,1751983848227,-514.3,0.00019726,2]
[370371348,1751983848236,-460.0,0.00019726,2]
[370371349,1751983848245,-653.52,0.00019726,2]
[370371350,1751983848254,-847.56,0.00019726,2]
[370371351,1751983848264,-460.0,0.00019726,2]
[370371352,1751983848274,-8781.99,0.00019726,2]
[370371353,1751983848284,-316.06441967,0.00019726,2]
[370371354,1751983848293,-500.52,0.00019726,2]
[370371355,1751983848303,-460.0,0.00019726,2]
[370371356,1751983848312,-460.0,0.00019726,2]
[370371357,1751983848321,-1078.93,0.00019726,2]
[370371358,1751983848331,-1410.35,0.00019726,2]
[370371359,1751983848340,-460.0,0.00019726,2]
[370371360,1751983848350,-460.0,0.00019726,2]
[370371361,1751983848401,-460.0,0.00019726,2]
[370371362,1751983848411,-1487.97,0.00019726,2]
[370371363,1751983848421,-4842.26,0.00019726,2]
[370371364,1751983848431,-514.09306818,0.00019726,2]
[370371365,1751983848440,-1632.92,0.00019726,2]
[370371366,1751983848449,-310.3896517,0.00019726,2]
[370371367,1751983848458,-1835.67,0.00019726,2]
[370371368,1751983848468,-2207.44,0.00019726,2]
[370371369,1751983848478,-460.0,0.00019726,2]
[370371370,1751983848487,-460.0,0.00019726,2]
[370371371,1751983848496,-460.0,0.00019726,2]
[370371372,1751983848507,-460.0,0.00019726,2]
[370371373,1751983848516,-460.0,0.00019726,2]
[370371374,1751983848526,-460.0,0.00019726,2]
[370371375,1751983848536,-207.4,0.00019737,2]
[370371376,1751983848545,-690.642,0.00019737,2]
[370371377,1751983848555,-561.54135328,0.00019737,2]
[370371378,1751983848564,-151.0,0.00019737,2]
[370371379,1751983848574,-661.23047706,0.00019737,2]
[370371380,1751983848583,-173.37575435,0.00019737,2]
[370371381,1751983848593,-2249.22108032,0.00019761,2]
[370371382,1751983848602,-150.0,0.00019765,2]
[370371383,1751983848611,-150.0,0.00019831,2]
[370371384,1751983848621,-259.0,0.0001987,2]
[370371385,1751983848630,-546.89178345,0.00019879,2]
[370371386,1751983848640,-1728.959433,0.0001988,5]
[370371387,1751983848651,-1000.0,0.000199,5]
[370371388,1751983848661,-52498.41289726,0.00019919,2]
[370371389,1751983848843,-137549.27315274,0.00019919,2]
[370371390,1751983848853,-1000.0,0.0001992,5]
[370371391,1751983848863,-1000.0,0.0001994,5]
[370371392,1751983848872,-1000.0,0.0001996,5]
[370371393,1751983848882,-1000.0,0.00019968,2]
[370371394,1751983848891,-1500.0,0.00019968,2]
[370371395,1751983848903,-500.0,0.00019973,2]
[370371396,1751983848912,-500.0,0.00019973,2]
[370371397,1751983848922,-500.0,0.00019973,2]
[370371398,1751983848932,-500.0,0.00019973,2]
[370371399,1751983848942,-500.0,0.00019973,2]
[370371400,1751983848952,-500.0,0.00019973,2]
[370371401,1751983848962,-500.0,0.00019973,2]
[370371402,1751983848972,-500.0,0.00019973,2]
[370371403,1751983848982,-500.0,0.00019973,2]
[370371404,1751983848991,-500.0,0.00019973,2]
[370371405,1751983849001,-500.0,0.00019973,2]
[370371406,1751983849010,-500.0,0.00019973,2]